bitfinex/quotes_ETHUSD_20241216
["timestamp","ask_amount","ask_price","bid_price","bid_amount"]
[1734318432294,0.02676863,3968.7,3968.3,0.39321111]
[1734318432605,0.8134,3968.8,3968.3,0.39321111]
[1734318432833,0.02675738,3968.6,3968.3,0.39321111]
[1734318433015,0.02676863,3968.7,3968.3,0.39321111]
[1734318433224,0.02674612,3968.5,3968.3,0.39321111]
[1734318433532,0.0266773,3968.4,3968.3,0.39321111]
[1734318433940,0.8134,3968.8,3968.3,0.39321111]
[1734318434152,0.0266773,3968.4,3968.3,0.39321111]
[1734318434289,0.8134,3969.1,3968.3,0.39321111]
[1734318434290,0.8134,3969.1,3968.3,2.90998111]
[1734318434488,0.8134,3969.1,3968.8,1.76375]
[1734318434720,0.8134,3969.1,3968.6,1.76384]
[1734318435110,0.8134,3969.1,3968.3,0.39321111]
[1734318436217,0.0268652,3969.0,3968.3,0.39321111]
[1734318436447,0.8134,3969.1,3968.3,0.39321111]
[1734318436758,0.0268652,3969.0,3968.3,0.39321111]
[1734318436910,0.0268652,3969.0,3968.4,1.76393]
[1734318437239,0.8134,3969.1,3968.4,1.76393]
[1734318438040,0.8134,3969.1,3968.3,2.15718111]
[1734318438752,0.8134,3969.1,3968.3,0.39321111]
[1734318439030,0.8134,3969.1,3968.4,1.76393]
[1734318439203,0.8134,3969.1,3968.3,0.39321111]
[1734318439595,0.8134,3969.1,3968.9,1.76367]
[1734318439796,0.8134,3969.1,3969.0,1.76366]
[1734318440405,0.8134,3969.1,3968.5,0.7528]
[1734318440406,0.8134,3969.1,3968.8,1.76375]
[1734318441039,0.8134,3969.1,3968.3,2.15716111]
[1734318441191,0.8134,3969.1,3968.3,0.39321111]
[1734318441396,0.8134,3969.1,3968.8,1.76374]
[1734318442538,0.8134,3969.1,3968.3,0.39321111]
[1734318442744,0.8134,3969.1,3968.3,2.15717111]
[1734318443264,0.7581,3968.9,3968.3,0.39321111]
[1734318443537,0.02597891,3968.8,3968.3,0.39321111]
[1734318443743,0.7581,3968.7,3968.3,0.39321111]
[1734318444093,0.0259564,3968.6,3968.3,0.39321111]
[1734318447960,0.0259564,3968.6,3968.3,2.40914111]
[1734318448393,0.7581,3968.7,3968.3,2.40914111]
[1734318448523,0.7581,3968.7,3968.3,0.39321111]
[1734318448837,0.7581,3968.7,3968.3,2.40916111]
[1734318449047,0.7581,3968.7,3968.6,2.01582]
[1734318449270,0.7877,3969.7,3968.6,2.01582]
[1734318449427,0.7877,3969.3,3968.6,2.01582]
[1734318449874,0.7877,3969.3,3968.3,0.39321111]
[1734318449875,0.02556854,3969.2,3968.3,0.39321111]
[1734318450228,0.02556854,3969.2,3969.1,2.01557]
[1734318450741,3.33,3969.4,3969.2,2.01549]
[1734318451466,3.33,3969.4,3969.3,2.01546]
[1734318451867,3.33,3969.4,3968.7,0.7937]
[1734318452046,3.33,3969.4,3969.0,2.01557]
[1734318452365,3.33,3969.1,3969.0,2.01557]
[1734318453029,3.33,3969.1,3968.3,1.72075944]
[1734318453389,3.33,3969.1,3968.9,2.01566]
[1734318453567,3.33,3969.1,3969.0,2.01562]
[1734318454673,6.66,3969.1,3969.0,2.01562]
[1734318454841,6.66,3969.1,3968.4,1.04970528]
[1734318455040,6.66,3969.1,3968.9,2.01566]
[1734318456065,6.66,3969.1,3968.4,1.04970528]
[1734318456230,6.66,3969.1,3969.0,2.01562]
[1734318456833,6.66,3969.1,3969.0,3.25401483]
[1734318457244,6.66,3969.1,3969.0,2.01562]
[1734318457476,6.68600747,3969.1,3969.0,2.01562]
[1734318457675,6.68600747,3969.1,3969.0,3.25409402]
[1734318458779,6.68600747,3969.1,3969.0,4.7654629]
[1734318458982,6.68600747,3969.1,3969.0,2.01562]
[1734318459182,8.02060822,3969.1,3968.7,2.01572]
[1734318459597,8.02060822,3969.1,3968.3,1.20611111]
[1734318459894,8.02060822,3969.1,3968.4,2.01592]
[1734318460191,0.7718,3969.0,3968.4,2.01592]
[1734318460396,1.54524082,3968.9,3968.5,2.01582]
[1734318460597,0.02617861,3968.9,3968.5,2.01582]
[1734318461952,3.33,3968.8,3968.5,2.01582]
[1734318462386,0.02536277,3968.7,3968.5,2.01582]
[1734318462760,3.33,3968.8,3968.5,2.01582]
[1734318462963,0.02535151,3968.6,3968.5,2.01582]
[1734318463162,3.33,3968.8,3968.5,2.01582]
[1734318463394,0.02535151,3968.6,3968.5,2.01582]
[1734318463572,3.33,3968.8,3968.5,2.01582]
[1734318463893,0.02535151,3968.6,3968.5,2.01582]
[1734318464096,3.33,3968.8,3968.5,2.01582]
[1734318464294,0.02535151,3968.6,3968.5,2.01582]
[1734318464588,3.33,3968.8,3968.5,2.01582]
[1734318464589,3.33,3968.8,3968.6,2.0158]
[1734318465095,3.33,3968.8,3968.7,3.25637243]
[1734318465467,3.33,3968.8,3968.7,4.30607771]
[1734318466198,3.33,3968.8,3968.7,3.25637243]
[1734318466493,3.33,3968.8,3968.7,4.08418084]
[1734318466678,3.33,3968.8,3968.7,2.84357841]
[1734318467780,3.33,3968.8,3968.7,4.08592462]
[1734318467994,3.33,3968.8,3968.7,2.07015462]
[1734318468199,3.33,3968.8,3968.3,3.71088639]
[1734318468200,4.76410387,3968.8,3968.3,3.71088639]
[1734318468494,4.76410387,3968.8,3968.4,3.12181751]
[1734318468495,0.8167,3968.7,3968.4,3.12181751]
[1734318468868,0.02485424,3968.6,3968.4,3.12181751]
[1734318469368,0.02485424,3968.6,3968.5,2.07286358]
[1734318469576,0.02485424,3968.6,3968.5,1.24371815]
[1734318469803,0.02485424,3968.6,3968.5,2.07286358]
[1734318470034,0.02485424,3968.6,3968.5,1.87885071]
[1734318470317,0.02485424,3968.6,3968.5,3.12256886]
[1734318470772,0.02485424,3968.6,3968.5,2.07286358]
[1734318471284,0.02485424,3968.6,3968.5,3.12256886]
[1734318471684,0.02485424,3968.6,3968.5,2.07286358]
[1734318471915,0.02485424,3968.6,3968.5,3.12256886]
[1734318472119,0.44200966,3968.6,3968.5,2.07286358]
[1734318472732,0.44200966,3968.6,3968.5,1.24371815]
[1734318472909,0.44200966,3968.6,3968.4,3.12256886]
[1734318473483,0.44200966,3968.6,3968.5,1.04970528]
[1734318473834,0.02485424,3968.6,3968.5,2.07281973]
[1734318474325,0.02485424,3968.6,3968.5,3.12252501]
[1734318474552,0.02485424,3968.6,3968.5,1.04970528]
[1734318474755,0.02485424,3968.6,3968.5,2.07281973]
[1734318475040,0.02485424,3968.6,3968.5,1.24369184]
[1734318475257,0.02485424,3968.6,3968.4,3.12252501]
[1734318475436,0.02485424,3968.6,3968.5,2.07281973]
[1734318475773,0.02485424,3968.6,3968.5,1.04970528]
[1734318476051,0.02485424,3968.6,3968.5,2.26785]
[1734318476249,0.02485424,3968.6,3968.5,4.34066973]
[1734318476448,0.02485424,3968.6,3968.5,5.99885841]
[1734318476600,3.33,3968.8,3968.7,2.26774]
[1734318476949,3.33,3968.8,3968.7,6.45058199]
[1734318477253,3.33,3968.8,3968.7,8.10877067]
[1734318478539,3.33,3968.8,3968.7,5.99874841]
[1734318479008,3.33,3968.8,3968.7,2.07281973]
[1734318479009,4.1138,3968.8,3968.7,2.07281973]
[1734318479215,4.1138,3968.8,3968.7,1.24369184]
[1734318479627,4.1138,3968.8,3968.6,3.12779433]
[1734318479829,4.1138,3968.8,3968.7,3.12779433]
[1734318479995,4.1138,3968.8,3968.7,2.29866644]
[1734318480339,4.13664619,3968.8,3968.7,2.07281973]
[1734318480702,4.13664619,3968.8,3968.7,1.24369184]
[1734318481148,4.13664619,3968.8,3968.7,2.07248182]
[1734318481434,4.13664619,3968.8,3968.7,0.82899273]
[1734318481609,4.13664619,3968.8,3968.5,1.05506688]
[1734318481816,4.13664619,3968.8,3968.5,2.29857113]
[1734318482009,4.13664619,3968.8,3968.6,0.82900403]
[1734318482342,5.9089854,3968.8,3968.3,1.44827799]
[1734318482653,0.7856,3968.7,3968.4,2.07258168]
[1734318482861,0.7856,3968.7,3968.3,0.39321111]
[1734318483151,0.02280797,3968.6,3968.4,0.82904186]
[1734318483932,0.02280797,3968.6,3968.3,0.39321111]
[1734318484132,0.02280797,3968.6,3968.4,0.82898957]
[1734318484740,0.7593,3968.5,3967.5,1.05506688]
[1734318484902,0.7593,3968.2,3967.2,1.05506688]
[1734318485223,0.7593,3968.2,3967.0,1.97598653]
[1734318485224,2.52017,3968.0,3967.3,0.82917118]
[1734318485554,2.52041,3967.6,3967.0,0.39331434]
[1734318485702,2.52041,3967.6,3966.7,1.05525738]
[1734318485703,0.795,3967.4,3966.7,1.05525738]
[1734318485926,0.795,3967.4,3966.8,1.24306042]
[1734318486240,0.795,3967.4,3966.5,1.05525738]
[1734318486441,0.795,3967.4,3966.4,1.44865356]
[1734318486623,0.3567451,3967.3,3966.5,2.07055792]
[1734318487464,0.3567451,3967.3,3966.4,0.39339618]
[1734318487465,0.795,3967.4,3966.4,0.39339618]
[1734318487635,0.795,3967.4,3966.5,0.82774336]
[1734318487956,0.03312837,3967.3,3966.4,0.39339618]
[1734318488262,0.795,3967.4,3966.4,0.39339618]
[1734318488447,0.295,3967.4,3966.4,0.39339618]
[1734318488780,0.03312837,3967.3,3966.4,0.39339618]
[1734318489370,0.295,3967.4,3966.6,2.26892]
[1734318490843,0.295,3967.4,3966.7,2.26888]
[1734318491051,0.295,3967.4,3966.4,0.39339618]
[1734318491253,0.295,3967.4,3966.4,2.66240618]
[1734318491453,2.06415525,3967.3,3966.4,0.39339618]
[1734318491660,0.7821,3967.2,3966.4,0.39339618]
[1734318494376,0.7821,3967.2,3966.5,2.26899]
[1734318494587,0.7821,3967.2,3966.6,2.26893]
[1734318495365,0.7821,3967.2,3966.4,0.39339618]
[1734318496403,0.7821,3967.2,3966.5,2.26897]
[1734318497057,0.7821,3967.2,3966.4,0.39339618]
[1734318497661,0.7821,3967.2,3966.4,2.91456618]
[1734318498207,0.7821,3967.2,3966.6,2.52103]
[1734318500598,0.7821,3967.2,3966.4,0.39339618]
[1734318501173,0.77300571,3967.2,3966.4,0.39339618]
[1734318501618,0.2837161,3967.1,3966.4,0.39339618]
[1734318501917,0.2837161,3967.1,3965.7,0.27784305]
[1734318501918,2.06415525,3966.9,3965.7,2.52161]
[1734318502934,0.2837161,3967.1,3965.8,0.27784305]
[1734318503073,0.2837161,3967.1,3966.1,2.52136]
[1734318503274,0.23478714,3967.0,3966.1,2.52136]
[1734318503826,2.84366984,3968.2,3966.6,2.52102]
[1734318503827,2.06415525,3968.1,3966.6,2.52102]
[1734318503972,2.06415525,3968.1,3966.2,0.252098]
[1734318504165,0.814,3967.6,3965.7,1.511]
[1734318504401,0.814,3967.2,3965.9,2.52149]
[1734318504606,0.814,3967.0,3965.6,0.39348647]
[1734318504815,0.814,3967.0,3965.8,2.52149]
[1734318505020,0.814,3967.0,3965.7,1.35434105]
[1734318505173,0.814,3967.0,3966.7,2.52096]
[1734318505378,0.814,3967.0,3965.9,0.252098]
[1734318505379,0.814,3967.0,3965.9,2.773578]
[1734318505602,0.814,3967.0,3965.9,0.252098]
[1734318505806,0.814,3967.0,3966.1,2.52132]
[1734318506005,0.814,3967.0,3965.8,2.5215]
[1734318507670,0.814,3967.0,3965.6,0.39348647]
[1734318507891,0.814,3966.8,3965.6,0.39348647]
[1734318508324,0.814,3966.8,3965.9,2.52144]
[1734318508534,0.814,3966.8,3966.0,2.5214]
[1734318508872,0.814,3966.8,3965.7,0.8163]
[1734318509132,2.06415525,3968.1,3966.0,1.511]
[1734318509272,0.77,3968.0,3966.1,1.068398]
[1734318509472,0.77,3968.0,3966.1,1.34624105]
[1734318509473,0.97641553,3968.0,3966.1,1.34624105]
[1734318509725,0.7895,3967.9,3966.9,2.52086]
[1734318510247,0.7895,3967.9,3967.8,2.52028]
[1734318510531,0.7895,3967.9,3967.5,2.52046]
[1734318510532,0.7514,3968.5,3967.7,0.3263709]
[1734318511021,0.7514,3968.5,3966.8,2.2892]
[1734318511022,2.49154,3968.5,3967.1,0.3263709]
[1734318511435,2.49154,3968.5,3967.1,0.6523122]
[1734318511577,2.49154,3968.5,3967.9,2.5202]
[1734318512411,2.49154,3968.5,3967.8,2.52024]
[1734318512625,2.49154,3968.5,3967.5,2.52043]
[1734318512778,1.581154,3968.4,3967.5,2.52043]
[1734318513137,0.7598,3968.3,3967.5,2.52043]
[1734318513575,0.7598,3968.3,3967.6,2.52038]
[1734318514029,0.7598,3968.3,3967.7,2.52035]
[1734318514233,0.2340954,3968.2,3967.7,2.52035]
[1734318515115,0.7598,3968.3,3967.4,0.3259413]
[1734318515405,6.66,3968.6,3967.4,0.3259413]
[1734318515406,6.66,3968.6,3968.4,2.51987]
[1734318515916,6.66,3968.6,3968.4,2.85232536]
[1734318517450,6.66,3968.6,3968.4,2.51987]
[1734318518349,6.66,3968.6,3967.9,1.13835536]
[1734318518660,8.325,3968.6,3968.2,2.52001]
[1734318518802,0.7551,3968.5,3968.2,2.52001]
[1734318519001,0.7551,3968.5,3967.5,0.8059]
[1734318519002,0.7551,3968.5,3968.3,2.51991]
[1734318519879,0.02407076,3968.4,3968.3,2.51991]
[1734318522797,1.43398784,3968.4,3967.9,0.33245536]
[1734318522935,1.43398784,3968.4,3967.4,2.5205]
[1734318523249,1.43398784,3968.4,3966.7,2.52094]
[1734318523250,0.8261,3967.8,3966.1,1.05525738]
[1734318523645,0.8261,3967.6,3966.5,2.52109]
[1734318523956,0.02577522,3967.5,3966.6,2.52104]
[1734318524154,0.8261,3967.6,3966.6,2.52104]
[1734318524355,0.02577522,3967.5,3966.6,2.52104]
[1734318524594,0.02577522,3967.5,3966.2,0.33245536]
[1734318524595,0.8261,3967.4,3966.2,0.33245536]
[1734318524757,0.02390999,3967.3,3966.2,0.33245536]
[1734318524977,0.8261,3967.2,3966.2,0.33245536]
[1734318526068,0.8261,3967.2,3965.8,2.52152]
[1734318526390,0.8261,3967.2,3965.6,0.39348647]
[1734318526589,0.8261,3967.2,3965.7,2.52161]
[1734318526790,0.8261,3967.0,3965.7,2.52161]
[1734318529475,0.8261,3967.0,3965.7,2.85406536]
[1734318531341,0.8261,3967.0,3965.7,0.33245536]
[1734318531559,0.828,3966.8,3965.7,0.33245536]
[1734318532433,2.52088,3966.9,3965.2,0.26274736]
[1734318532434,2.06415525,3966.2,3965.2,0.26274736]
[1734318532611,2.06415525,3966.2,3965.1,0.39353435]
[1734318532612,0.828,3966.1,3965.1,0.39353435]
[1734318532950,0.828,3966.1,3965.2,0.26293923]
[1734318533111,0.828,3966.1,3964.8,2.91575727]
[1734318533306,0.828,3966.1,3964.9,0.65839666]
[1734318533757,0.828,3966.1,3964.9,3.18051666]
[1734318534774,0.828,3966.1,3964.9,0.65839666]
[1734318534927,0.828,3966.1,3965.5,2.52173]
[1734318535259,0.828,3966.1,3965.6,0.33245536]
[1734318536328,0.828,3966.1,3965.6,2.85410536]
[1734318538554,0.828,3966.1,3965.6,0.33245536]
[1734318538719,0.828,3966.1,3965.7,2.52161]
[1734318539354,0.828,3966.1,3965.8,2.52154]
[1734318539914,0.828,3966.1,3965.9,2.52146]
[1734318541323,0.828,3966.1,3965.9,2.85391536]
[1734318541725,0.49839369,3967.3,3965.9,2.85391536]
[1734318541923,2.06415525,3967.4,3966.2,2.52129]
[1734318541924,0.7523,3967.1,3966.2,2.52129]
[1734318544030,0.7523,3967.1,3966.4,2.52114]
[1734318544268,0.7523,3967.1,3966.0,0.33245536]
[1734318544470,0.7523,3967.1,3966.0,2.85385536]
[1734318544773,0.7523,3966.9,3965.5,0.33245536]
[1734318545069,0.7523,3966.9,3965.5,2.85418536]
[1734318545924,0.7523,3966.9,3965.6,2.52168]
[1734318546259,0.7523,3966.9,3965.7,2.5216]
[1734318546626,0.7523,3966.9,3965.6,0.33245536]
[1734318546627,2.52086,3966.9,3965.6,0.33245536]
[1734318546968,0.7837,3966.7,3965.6,0.33245536]
[1734318547164,0.45850152,3966.8,3964.8,2.91572727]
[1734318547165,0.7691,3966.3,3964.9,2.5221]
[1734318547325,2.52129,3966.3,3964.8,0.39356727]
[1734318547524,0.7691,3966.2,3964.8,1.05196393]
[1734318547858,0.7691,3966.2,3965.4,2.5218]
[1734318548258,0.7691,3966.2,3965.2,2.52192]
[1734318548467,0.7691,3966.2,3965.2,2.85437536]
[1734318548783,0.7691,3966.2,3965.3,0.33245536]
[1734318550325,0.7691,3966.2,3965.4,2.52178]
[1734318550663,0.7691,3966.2,3965.4,2.85423536]
[1734318552583,0.7691,3966.2,3965.4,0.33245536]
[1734318553381,0.7691,3966.2,3965.4,2.85424536]
[1734318555250,0.7691,3966.2,3965.5,0.65839666]
[1734318555446,0.7691,3966.2,3965.8,2.52155]
[1734318555885,0.7691,3966.2,3965.8,2.85400536]
[1734318556257,0.7691,3966.2,3965.8,0.33245536]
[1734318556689,0.7691,3966.2,3966.1,2.52136]
[1734318557587,0.7954,3967.2,3966.2,2.5213]
[1734318557826,0.7954,3967.0,3966.2,2.5213]
[1734318558112,0.7954,3967.0,3965.8,0.33245536]
[1734318558286,0.7954,3967.0,3966.0,2.52138]
[1734318559656,0.7954,3966.4,3964.9,0.33245536]
[1734318559879,4.58527525,3966.5,3965.0,2.85451536]
[1734318559880,0.7954,3966.2,3965.0,2.85451536]
[1734318562748,0.7954,3966.2,3965.1,2.52198]
[1734318562884,0.8163,3966.1,3965.0,0.33245536]
[1734318563218,2.52168,3965.7,3964.8,0.39356727]
[1734318563419,2.52175,3965.5,3964.8,0.39356727]
[1734318563634,0.8163,3965.3,3964.5,0.33245536]
[1734318563945,2.52182,3965.4,3964.5,0.33245536]
[1734318563946,0.8163,3965.1,3964.5,0.33245536]
[1734318564482,0.8163,3965.1,3964.5,0.65839666]
[1734318565098,0.8163,3965.1,3964.6,2.8482513]
[1734318565347,0.8163,3965.1,3964.6,3.18070666]
[1734318565510,0.8163,3965.1,3964.7,0.33245536]
[1734318566398,0.8163,3965.1,3964.7,2.85469536]
[1734318566914,0.8163,3965.1,3964.8,2.52218]
[1734318567259,0.8163,3965.1,3964.8,2.85463536]
[1734318567756,0.8163,3965.1,3964.6,2.8482613]
[1734318567903,0.8163,3965.1,3964.9,0.33245536]
[1734318568259,0.8163,3965.1,3964.4,0.65839666]
[1734318571061,0.8163,3965.1,3964.0,2.78565383]
[1734318571280,0.8033,3964.8,3963.7,0.33245536]
[1734318572815,0.8033,3964.8,3963.8,2.52283]
[1734318573440,0.8033,3964.8,3963.8,2.85524536]
[1734318573950,0.8033,3964.8,3963.8,0.33245536]
[1734318574105,2.06415525,3964.9,3963.8,0.33245536]
[1734318574106,0.8047,3964.6,3963.8,0.33245536]
[1734318575028,0.8047,3964.6,3963.8,2.85523536]
[1734318576017,0.8047,3964.6,3964.0,2.52269]
[1734318576219,0.8047,3964.6,3964.2,2.52252]
[1734318576452,0.8047,3964.6,3964.1,0.33245536]
[1734318576650,0.8047,3964.6,3964.5,2.52238]
[1734318577477,0.8047,3964.6,3963.7,2.52284]
[1734318577478,0.8047,3964.6,3964.0,2.52269]
[1734318578095,0.8047,3964.6,3963.7,0.33245536]
[1734318578096,0.8047,3964.6,3963.8,2.52283]
[1734318578439,0.8047,3964.6,3963.7,0.33245536]
[1734318578640,0.8047,3964.6,3963.7,0.65839666]
[1734318579274,0.8047,3964.6,3963.8,2.52283]
[1734318579655,0.8047,3964.6,3963.9,2.52276]
[1734318581795,0.8047,3964.6,3964.0,2.52268]
[1734318582514,0.8047,3964.6,3964.1,2.52263]
[1734318584306,0.8047,3964.6,3964.2,2.52257]
[1734318584517,0.8047,3964.6,3963.7,0.65839666]
[1734318584695,0.8047,3964.6,3963.4,2.52303]
[1734318585013,0.8047,3964.6,3963.4,2.85548536]
[1734318585313,0.8047,3964.6,3963.7,2.52288]
[1734318585524,0.8047,3964.6,3963.5,0.33245536]
[1734318585722,2.06415525,3964.5,3963.4,2.52308]
[1734318585879,0.8168,3964.3,3963.4,2.52308]
[1734318586207,0.8168,3964.3,3963.2,2.52316]
[1734318586409,0.8168,3964.3,3963.3,0.33245536]
[1734318586711,0.8168,3964.3,3963.3,2.85559536]
[1734318586880,0.8168,3964.1,3963.3,2.85559536]
[1734318587084,0.8168,3964.1,3963.3,0.33245536]
[1734318587613,0.33396028,3964.2,3962.5,0.2630641]
[1734318587614,2.06415525,3963.7,3962.5,0.2630641]
[1734318587805,0.8168,3963.5,3962.5,0.2630641]
[1734318588011,0.8168,3963.3,3962.3,0.33245536]
[1734318589228,0.8168,3963.3,3962.3,3.18216666]
[1734318589515,0.8168,3963.3,3962.4,0.3259413]
[1734318589680,0.8168,3963.3,3962.5,0.33245536]
[1734318589886,0.8168,3963.3,3962.5,0.65839666]
[1734318591124,0.8168,3963.3,3962.6,2.52358]
[1734318591421,0.8168,3963.3,3962.7,2.52352]
[1734318592289,0.8168,3963.3,3962.7,0.33245536]
[1734318592490,0.8168,3963.3,3963.0,2.52329]
[1734318592691,0.7978,3964.1,3963.2,2.52321]
[1734318592904,0.7978,3964.1,3963.7,2.52289]
[1734318593107,0.7978,3964.1,3963.3,2.52314]
[1734318593307,0.7978,3964.1,3963.9,2.52276]
[1734318593531,0.7978,3964.1,3963.3,0.32737203]
[1734318593532,0.7978,3964.1,3963.4,2.52308]
[1734318593683,0.7978,3964.1,3963.6,2.52293]
[1734318594023,0.7978,3964.1,3963.7,2.52288]
[1734318594582,0.7978,3964.1,3963.4,2.52304]
[1734318595228,0.7978,3964.1,3963.1,2.52327]
[1734318595429,0.7978,3964.1,3963.6,2.52295]
[1734318595632,0.7978,3964.1,3962.8,0.63248]
[1734318595843,0.7978,3964.1,3963.3,2.5231]
[1734318596614,0.7978,3964.1,3963.0,2.52331]
[1734318596813,0.7978,3964.1,3963.1,2.52327]
[1734318597020,0.7978,3964.1,3962.9,2.52338]
[1734318597226,0.8131,3963.9,3962.9,2.52338]
[1734318598152,0.8131,3963.9,3962.7,2.52352]
[1734318598514,0.8131,3963.9,3962.4,0.32737203]
[1734318598773,0.8131,3963.9,3962.8,2.52345]
[1734318598968,2.4515804,3963.8,3962.4,0.32737203]
[1734318599267,0.8122,3963.7,3962.6,2.52359]
[1734318599818,0.8122,3963.7,3962.8,2.52346]
[1734318600015,1.31129857,3963.7,3963.0,2.52333]
[1734318600284,0.3762879,3963.6,3963.0,2.52333]
[1734318600433,0.3762879,3963.6,3962.5,2.52365]
[1734318600434,0.3762879,3963.6,3962.5,0.8295]
[1734318600636,0.8122,3963.7,3962.6,0.32737203]
[1734318601409,0.8122,3963.7,3962.8,2.52346]
[1734318601869,0.8122,3963.7,3962.6,0.32737203]
[1734318602185,0.8122,3963.7,3962.5,2.52362]
[1734318602186,2.52289,3963.7,3962.5,2.52362]
[1734318602474,2.52289,3963.7,3962.2,0.32737203]
[1734318602475,0.8108,3963.5,3962.3,2.52377]
[1734318602653,0.8108,3963.5,3962.2,0.32737203]
[1734318602837,0.8108,3963.5,3962.3,0.63248]
[1734318603156,0.8108,3963.5,3962.8,2.52345]
[1734318607723,0.8108,3963.5,3962.4,0.32737203]
[1734318608562,0.8108,3963.5,3962.5,0.7875]
[1734318608734,0.8108,3963.5,3962.5,1.11487203]
[1734318608934,0.8108,3963.5,3963.2,2.52315]
[1734318609782,0.8108,3963.5,3962.6,0.32737203]
[1734318610083,0.8108,3963.5,3962.8,2.5234]
[1734318610434,0.8108,3963.5,3962.9,2.52339]
[1734318610867,0.8108,3963.5,3962.7,2.52353]
[1734318611169,0.49958892,3964.2,3962.8,0.32737203]
[1734318611170,0.7628,3964.1,3962.8,0.32737203]
[1734318611325,0.7628,3964.1,3962.9,0.85389431]
[1734318611530,0.7628,3964.1,3963.6,2.5229]
[1734318612032,0.7628,3964.1,3963.4,2.52307]
[1734318612493,0.7628,3964.1,3963.5,2.52301]
[1734318613033,0.7628,3964.1,3963.0,0.32737203]
[1734318613335,0.7628,3964.1,3963.1,2.17817425]
[1734318613538,1.5516667,3965.3,3964.4,2.52244]
[1734318613539,0.8241,3964.5,3964.4,2.52244]
[1734318614006,0.8241,3964.5,3963.4,1.05525738]
[1734318614007,0.8241,3964.5,3964.1,2.52259]
[1734318614326,0.8241,3964.5,3963.3,1.81895738]
[1734318614524,0.8241,3964.5,3964.2,2.52257]
[1734318614847,0.8241,3964.5,3964.3,2.52249]
[1734318616126,0.8241,3964.5,3963.6,2.52295]
[1734318616323,0.8241,3964.5,3963.7,1.1989907]
[1734318616623,0.8241,3964.5,3964.2,2.52255]
[1734318620172,0.7678,3965.1,3964.9,2.5221]
[1734318620368,0.7678,3965.8,3965.0,2.52206]
[1734318620664,0.18022445,3965.7,3965.0,2.52206]
[1734318620883,0.7678,3965.8,3965.0,2.52206]
[1734318621234,0.7678,3965.8,3964.8,2.52218]
[1734318623867,0.775,3965.7,3964.3,0.63248]
[1734318624163,2.57708823,3965.9,3963.7,1.58267219]
[1734318624164,0.775,3965.4,3964.2,2.52253]
[1734318626951,0.775,3965.4,3963.8,0.32737203]
[1734318627154,0.775,3965.4,3963.9,1.17619172]
[1734318627319,0.28391553,3965.3,3964.3,2.52248]
[1734318627815,0.775,3965.2,3964.5,2.52237]
[1734318628023,0.775,3965.2,3964.3,0.32737203]
[1734318628217,0.775,3965.2,3964.3,2.84986203]
[1734318628417,0.775,3965.2,3964.3,0.32737203]
[1734318628633,0.775,3964.6,3963.4,0.32737203]
[1734318628921,0.775,3964.3,3963.2,2.52321]
[1734318629124,0.775,3964.3,3963.3,2.52314]
[1734318630482,2.5226,3964.2,3963.2,0.32737203]
[1734318630683,0.7625,3964.1,3963.0,2.5233]
[1734318630983,0.7625,3964.0,3962.8,0.32737203]
[1734318631119,0.328514,3963.9,3962.8,0.32737203]
[1734318631319,0.7625,3963.8,3962.8,0.32737203]
[1734318631728,0.7625,3963.8,3962.9,2.52338]
[1734318632335,0.7625,3963.8,3962.8,0.32737203]
[1734318634332,2.06415525,3963.5,3961.9,1.05525738]
[1734318634530,2.06415525,3963.5,3962.0,0.87146273]
[1734318634531,0.7739,3963.1,3962.0,0.87146273]
[1734318634768,0.7739,3963.1,3961.9,0.32737203]
[1734318635135,0.7739,3963.1,3961.9,2.85140203]
[1734318635328,0.329713,3963.0,3961.9,2.85140203]
[1734318635754,0.7739,3963.1,3962.1,2.5239]
[1734318635955,0.7739,3963.1,3962.0,0.32737203]
[1734318636676,0.7739,3963.1,3962.1,2.5239]
[1734318636849,0.7739,3963.1,3962.0,0.32737203]
[1734318637250,2.52308,3963.4,3962.0,0.32737203]
[1734318637251,2.06415525,3962.5,3962.0,0.32737203]
[1734318637453,2.06415525,3962.5,3961.1,0.26310153]
[1734318637454,0.7741,3962.3,3961.1,0.26310153]
[1734318638310,0.7741,3962.3,3961.6,0.32737203]
[1734318638575,0.7741,3962.3,3961.2,2.82956797]
[1734318638740,0.7741,3962.3,3961.6,0.7676]
[1734318639453,0.7741,3962.3,3961.5,0.32737203]
[1734318640571,0.7741,3962.3,3961.1,3.29213]
[1734318640774,0.7741,3962.3,3961.1,3.61950203]
[1734318641182,2.52391,3962.1,3961.1,0.32737203]
[1734318641337,0.82,3962.0,3960.8,2.52468]
[1734318641673,2.52398,3962.0,3960.7,0.32737203]
[1734318641833,0.82,3961.9,3960.7,0.32737203]
[1734318642038,2.52398,3962.0,3960.7,0.32737203]
[1734318642039,0.8199,3961.7,3960.7,0.32737203]
[1734318642435,0.8199,3961.7,3961.0,2.5246]
[1734318642635,0.8199,3961.7,3960.8,3.32889]
[1734318642836,0.81079837,3961.7,3960.8,2.85206203]
[1734318643039,0.81079837,3961.7,3960.2,0.8255]
[1734318643240,0.81079837,3961.7,3960.7,2.52479]
[1734318644538,0.81079837,3961.7,3960.4,0.32737203]
[1734318644737,0.9412494,3961.7,3960.5,2.52492]
[1734318645176,0.9412494,3961.7,3960.5,2.85229203]
[1734318645381,0.9412494,3961.7,3960.6,2.52483]
[1734318645901,0.9412494,3961.7,3960.7,2.52479]
[1734318646778,0.9412494,3961.7,3960.8,2.52468]
[1734318647103,0.81079837,3961.7,3961.2,2.52446]
[1734318647442,0.81079837,3961.7,3960.9,0.32737203]
[1734318647647,0.81079837,3961.7,3960.9,2.85202203]
[1734318647849,0.81079837,3961.7,3960.9,0.32737203]
[1734318648102,0.81079837,3961.7,3961.3,2.52441]
[1734318648396,0.81079837,3961.7,3961.0,2.52459]
[1734318648697,0.81079837,3961.7,3960.9,0.32737203]
[1734318649145,0.81079837,3961.7,3960.7,2.52474]
[1734318653501,0.81079837,3961.7,3960.5,0.32737203]